bitfinex/quotes_BTCUSD_20250330
["timestamp","ask_amount","ask_price","bid_price","bid_amount"]
[1743346029398,0.17386476,83036.0,83035.0,0.00138414]
[1743346029697,0.41472376,83036.0,83035.0,0.12366897]
[1743346030559,0.50677424,83036.0,83035.0,0.00338414]
[1743346033155,0.41472376,83036.0,83035.0,0.00338414]
[1743346033387,0.41472376,83036.0,83035.0,0.00138414]
[1743346033687,0.41472376,83036.0,83035.0,0.00038414]
[1743346034329,0.41798656,83036.0,83035.0,0.00038414]
[1743346039121,0.39911807,83036.0,83035.0,0.00038414]
[1743346041321,0.41798716,83036.0,83035.0,0.00038414]
[1743346044823,0.03948616,83036.0,83035.0,0.00038414]
[1743346046446,0.05152816,83036.0,83035.0,0.00038414]
[1743346046576,0.03265907,83036.0,83035.0,0.00038414]
[1743346048311,0.03265907,83036.0,83035.0,0.00138414]
[1743346049701,0.05152707,83036.0,83035.0,0.00138414]
[1743346049869,0.03948507,83036.0,83035.0,0.00138414]
[1743346050663,0.05152707,83036.0,83035.0,0.00138414]
[1743346051077,0.03948507,83036.0,83035.0,0.00138414]
[1743346051280,0.05152707,83036.0,83035.0,0.00138414]
[1743346055181,0.05152707,83036.0,83035.0,0.14326414]
[1743346056538,0.03265907,83036.0,83035.0,0.14326414]
[1743346058991,0.10284929,83036.0,83035.0,0.14326414]
[1743346059638,0.12171701,83036.0,83035.0,0.14326414]
[1743346061704,0.05152679,83036.0,83035.0,0.14326414]
[1743346064382,0.05152679,83036.0,83035.0,0.00138414]
[1743346064591,0.05152679,83036.0,83035.0,0.14322414]
[1743346066655,0.03265907,83036.0,83035.0,0.14322414]
[1743346068489,0.03265907,83036.0,83035.0,0.00138414]
[1743346068699,0.04265907,83036.0,83035.0,0.14318414]
[1743346069502,0.06152693,83036.0,83035.0,0.14318414]
[1743346073866,0.1558923,83036.0,83035.0,0.00138414]
[1743346074073,0.2805923,83036.0,83035.0,0.00138414]
[1743346074278,0.27758132,83036.0,83035.0,0.00138414]
[1743346076204,0.18622693,83036.0,83035.0,0.00138414]
[1743346076400,0.18622693,83036.0,83035.0,0.00038414]
[1743346076601,0.04265907,83036.0,83035.0,0.00038414]
[1743346079575,0.06152702,83036.0,83035.0,0.00038414]
[1743346090300,0.04265907,83036.0,83035.0,0.00038414]
[1743346092238,0.03061707,83036.0,83035.0,0.26238897]
[1743346092383,0.28351807,83036.0,83035.0,0.26238897]
[1743346092756,0.03048414,83036.0,83035.0,0.27443197]
[1743346092961,0.04935197,83036.0,83035.0,0.27443197]
[1743346093983,0.04935197,83036.0,83035.0,0.51529397]
[1743346094316,0.03213063,83036.0,83035.0,0.51529397]
[1743346096883,0.0132628,83036.0,83035.0,0.51529397]
[1743346097489,0.0132628,83036.0,83035.0,0.27443197]
[1743346097722,0.0304895,83036.0,83035.0,0.27543197]
[1743346097965,0.0132628,83036.0,83035.0,0.27543197]
[1743346098111,0.0304895,83036.0,83035.0,0.27543197]
[1743346099059,0.0132628,83036.0,83035.0,0.27543197]
[1743346099973,0.0132628,83036.0,83035.0,0.35253197]
[1743346101300,0.03212929,83036.0,83035.0,0.35253197]
[1743346101918,0.03212929,83036.0,83035.0,0.35153197]
[1743346102117,0.03212929,83036.0,83035.0,0.39943197]
[1743346102861,0.03212929,83036.0,83035.0,0.40343197]
[1743346104446,0.03212929,83036.0,83035.0,0.24966897]
[1743346104646,0.07146882,83036.0,83035.0,0.12466897]
[1743346104819,0.08877661,83036.0,83035.0,0.26634897]
[1743346105226,0.09178751,83036.0,83035.0,0.00438414]
[1743346105455,0.09178751,83036.0,83035.0,0.14602414]
[1743346105456,0.13787908,83036.0,83035.0,0.14602414]
[1743346106266,0.13787908,83036.0,83035.0,0.14402414]
[1743346106534,0.13787908,83036.0,83035.0,0.14202414]
[1743346106759,0.13787908,83036.0,83035.0,0.14402414]
[1743346106990,0.13787908,83036.0,83035.0,0.14502414]
[1743346107226,0.13787908,83036.0,83035.0,0.14302414]
[1743346107953,0.11901259,83036.0,83035.0,0.14302414]
[1743346108547,0.11901259,83036.0,83035.0,0.14402414]
[1743346109846,0.03057059,83036.0,83035.0,0.14402414]
[1743346109998,0.03057059,83036.0,83035.0,0.51721397]
[1743346110410,0.0132628,83036.0,83035.0,0.51721397]
[1743346110773,0.03212992,83036.0,83035.0,0.51721397]
[1743346111826,0.03212992,83036.0,83035.0,0.27635197]
[1743346112021,0.10202195,83036.0,83035.0,0.27635197]
[1743346112255,0.04943556,83036.0,83035.0,0.27635197]
[1743346113938,0.04943556,83036.0,83035.0,0.51721397]
[1743346115098,0.03212992,83036.0,83035.0,0.50517097]
[1743346115392,0.03212992,83036.0,83035.0,0.51721397]
[1743346116955,0.0132628,83036.0,83035.0,0.51721397]
[1743346118367,0.0132628,83036.0,83035.0,0.60041397]
[1743346118574,0.0132628,83036.0,83035.0,0.66105482]
[1743346118774,0.0132628,83036.0,83035.0,0.81105482]
[1743346122414,0.0132628,83036.0,83035.0,0.81101482]
[1743346124133,0.0132628,83036.0,83035.0,1.11101482]
[1743346124918,0.0132628,83036.0,83035.0,0.96941482]
[1743346125152,0.0132628,83036.0,83035.0,1.11097482]
[1743346125366,0.0132628,83036.0,83035.0,1.10997482]
[1743346125540,0.0132628,83036.0,83035.0,1.11597482]
[1743346126913,0.0132628,83036.0,83035.0,1.11497482]
[1743346127418,0.0132628,83036.0,83035.0,1.11997482]
[1743346129506,0.0132628,83036.0,83035.0,1.10543397]
[1743346132463,0.0132628,83036.0,83035.0,1.11997482]
[1743346134071,0.0132628,83036.0,83035.0,1.11497482]
[1743346135287,0.0132628,83036.0,83035.0,1.12097482]
[1743346135491,0.00723029,83036.0,83035.0,1.12097482]
[1743346135932,0.00119778,83036.0,83035.0,1.12097482]
[1743346136334,0.00119778,83036.0,83035.0,1.48224606]
[1743346136538,7.8e-07,83036.0,83035.0,1.48724606]
[1743346137515,7.8e-07,83036.0,83035.0,1.47620606]
[1743346138221,7.8e-07,83036.0,83035.0,1.48220606]
[1743346139008,7.8e-07,83036.0,83035.0,1.89430606]
[1743346139208,0.0001685,83048.0,83047.0,0.702868]
[1743346139549,1e-08,83049.0,83048.0,0.15488185]
[1743346139734,1e-08,83049.0,83048.0,0.27638136]
[1743346139935,1e-08,83049.0,83048.0,0.27516668]
[1743346140152,0.0503685,83079.0,83071.0,0.252794]
[1743346140272,0.1287685,83079.0,83071.0,1.08775883]
[1743346140980,0.0190282,83072.0,83071.0,1.08775883]
[1743346141409,0.01949965,83072.0,83071.0,0.84700183]
[1743346141819,0.01949965,83072.0,83071.0,0.8468763]
[1743346142232,0.03743972,83072.0,83071.0,0.8570751]
[1743346142434,0.04947672,83072.0,83071.0,0.7155951]
[1743346142634,0.11583972,83072.0,83071.0,0.8570751]
[1743346143038,0.09789965,83072.0,83071.0,0.8570751]
[1743346143296,0.03743148,83072.0,83071.0,0.8691121]
[1743346143471,0.01949965,83072.0,83071.0,0.8691121]
[1743346144559,0.01949965,83072.0,83071.0,0.8701121]
[1743346144757,0.01949965,83072.0,83071.0,0.8691121]
[1743346144955,0.01949965,83072.0,83071.0,0.8711121]
[1743346145608,0.01949965,83072.0,83071.0,0.7296321]
[1743346145799,0.01949965,83072.0,83071.0,0.8711121]
[1743346146745,0.01949965,83072.0,83071.0,0.8691121]
[1743346146876,0.00064005,83072.0,83071.0,0.8691121]
[1743346147086,0.00064005,83072.0,83071.0,0.8701121]
[1743346147289,0.00064005,83072.0,83071.0,0.8721121]
[1743346149883,0.01949925,83072.0,83071.0,0.8721121]
[1743346150287,0.39799125,83072.0,83071.0,0.71864]
[1743346150451,0.41592458,83072.0,83071.0,0.73058312]
[1743346150650,0.16313258,83072.0,83071.0,0.85086795]
[1743346150879,0.14519925,83072.0,83071.0,0.85086795]
[1743346151073,0.01949925,83072.0,83071.0,0.85086795]
[1743346151285,0.01949925,83072.0,83071.0,0.84886795]
[1743346151476,0.03743257,83072.0,83071.0,0.84886795]
[1743346151695,0.03743257,83072.0,83071.0,0.84686795]
[1743346151927,0.03743257,83072.0,83071.0,0.85890495]
[1743346152098,0.01949925,83072.0,83071.0,0.85890495]
[1743346152691,0.01949925,83072.0,83071.0,0.71746495]
[1743346152897,0.01949925,83072.0,83071.0,1.15890495]
[1743346153094,0.01949925,83072.0,83071.0,1.2206458]
[1743346153907,0.01949925,83072.0,83071.0,1.2246458]
[1743346155902,0.0041685,83079.0,83078.0,0.402773]
[1743346156088,0.00430985,83079.0,83078.0,0.52305783]
[1743346157976,0.00430985,83079.0,83078.0,0.52805783]
[1743346158176,0.00430985,83079.0,83078.0,0.54659868]
[1743346160916,2.0001686,83099.0,83098.0,0.252712]
[1743346161094,2.0001686,83099.0,83098.0,0.12028483]
[1743346161276,2.01817952,83099.0,83098.0,0.27371783]
[1743346162113,2.01817952,83099.0,83098.0,0.27571783]
[1743346162736,2.01215035,83099.0,83098.0,1.11035411]
[1743346162949,1.70237237,83099.0,83098.0,1.52245411]
[1743346163158,1.6963432,83099.0,83098.0,1.28395411]
[1743346163434,1.6963432,83099.0,83098.0,1.28595411]
[1743346163694,1.69031403,83099.0,83098.0,1.28195411]
[1743346163913,0.89868375,83099.0,83098.0,1.38217355]
[1743346164296,0.89868375,83099.0,83098.0,1.5423327]
[1743346164511,0.89868375,83099.0,83098.0,1.3923327]
[1743346164687,0.89868375,83099.0,83098.0,1.3679845]
[1743346166359,0.89868375,83099.0,83098.0,0.59461326]
[1743346166969,0.89868375,83099.0,83098.0,0.60915411]
[1743346169026,0.83795704,83099.0,83098.0,0.73555411]
[1743346169359,0.83192834,83099.0,83098.0,0.73555411]
[1743346169744,0.82589964,83099.0,83098.0,0.73555411]
[1743346170073,0.81987094,83099.0,83098.0,0.73555411]
[1743346170287,7e-07,83099.0,83098.0,1.99523611]
[1743346170521,0.0152947,83099.0,83098.0,1.14765411]
[1743346170698,0.0123708,83114.0,83108.0,0.56722285]
[1743346170898,0.00414132,83109.0,83108.0,1.26038768]
[1743346173932,0.00414132,83109.0,83108.0,1.27038768]
[1743346174535,0.00414132,83109.0,83108.0,1.41174768]
[1743346174939,0.0123708,83114.0,83111.0,0.56721485]
[1743346175195,0.0001685,83120.0,83119.0,0.31203]
[1743346175401,0.0001685,83120.0,83119.0,0.95812692]
[1743346175621,0.00024222,83120.0,83119.0,1.59693687]
[1743346175826,0.00024222,83120.0,83119.0,1.37907687]
[1743346175827,7.372e-05,83120.0,83119.0,1.37907687]
[1743346176081,7.372e-05,83120.0,83119.0,1.52043687]
[1743346176872,7.372e-05,83120.0,83119.0,1.53230913]
[1743346177476,7.372e-05,83120.0,83119.0,1.53830913]
[1743346177848,7.372e-05,83120.0,83119.0,1.39694913]
[1743346178048,7.372e-05,83120.0,83119.0,1.28017789]
[1743346178266,7.372e-05,83120.0,83119.0,1.04167789]
[1743346178477,0.00024212,83120.0,83119.0,1.18299789]
[1743346178667,0.00024212,83120.0,83119.0,1.52972828]
[1743346179019,0.00024212,83120.0,83119.0,1.54426913]
[1743346179224,0.02,83140.0,83131.0,0.64595385]
[1743346179433,0.02,83140.0,83133.0,0.012028]
[1743346179607,0.02,83140.0,83133.0,0.14806251]
[1743346180197,0.02,83140.0,83133.0,0.14685368]
[1743346180397,0.02,83140.0,83133.0,0.14806239]
[1743346180725,0.02,83140.0,83133.0,0.15185368]
[1743346181086,0.02,83140.0,83133.0,0.14685368]
[1743346181290,0.02,83140.0,83133.0,0.30017368]
[1743346181492,0.02,83140.0,83133.0,0.45017368]
[1743346182820,0.02,83140.0,83133.0,0.86227368]
[1743346182994,0.01884394,83149.0,83148.0,0.55256]
[1743346183206,0.01898522,83149.0,83148.0,1.76261692]
[1743346183404,0.01296054,83149.0,83148.0,1.76261692]
[1743346183824,0.00693586,83149.0,83148.0,1.76261692]
[1743346184040,0.00014128,83149.0,83148.0,1.76261692]
[1743346184247,0.0001685,83163.0,83162.0,0.252518]
[1743346184444,0.0001685,83163.0,83162.0,0.43230883]
[1743346184445,0.00063935,83163.0,83162.0,0.43230883]
[1743346184777,0.00063935,83163.0,83162.0,0.58283845]
[1743346184883,0.00063935,83163.0,83162.0,0.42949445]
[1743346185090,0.09240001,83163.0,83162.0,0.57081445]
[1743346185309,0.08193935,83163.0,83162.0,0.28320863]
[1743346185512,0.08193935,83163.0,83162.0,0.29823263]
[1743346186114,0.08193935,83163.0,83162.0,0.28620863]
[1743346186399,0.12723935,83163.0,83162.0,0.30123263]
[1743346186595,0.13926335,83163.0,83162.0,0.13549445]
[1743346186820,0.13926335,83163.0,83162.0,0.006]
[1743346186821,0.14972989,83163.0,83162.0,0.006]
[1743346187020,0.14972989,83163.0,83162.0,0.14728]
[1743346187619,0.14972989,83163.0,83162.0,0.14428]
[1743346187856,0.012025,83158.0,83157.0,0.01207085]
[1743346188033,0.012025,83158.0,83157.0,0.26156483]
[1743346188405,0.01049321,83158.0,83157.0,0.27358983]
[1743346188759,0.12723935,83163.0,83158.0,0.252531]
[1743346189087,0.01048254,83162.0,83159.0,0.12028483]
[1743346190161,0.02932137,83162.0,83159.0,0.12028483]
[1743346190555,0.02932137,83162.0,83159.0,0.12228483]
[1743346191242,0.02932137,83162.0,83160.0,0.012025]
[1743346191442,0.02932137,83162.0,83161.0,0.69280483]
[1743346191646,0.02932137,83162.0,83161.0,0.70482883]
[1743346192054,0.01883883,83162.0,83161.0,0.70482883]
[1743346192797,0.01883883,83162.0,83161.0,0.69280483]
[1743346192990,0.28183112,83162.0,83161.0,0.69280483]
[1743346193576,0.28183112,83162.0,83161.0,0.69580483]
[1743346193802,0.02931312,83162.0,83161.0,0.69580483]
[1743346194581,0.02931312,83162.0,83161.0,0.69880483]
[1743346196378,0.36303112,83162.0,83161.0,0.84008483]
[1743346196959,0.36303112,83162.0,83161.0,0.7198]
[1743346197170,0.36303112,83162.0,83161.0,0.7168]
[1743346197387,0.40963112,83162.0,83161.0,0.7138]
[1743346197639,0.39079229,83162.0,83161.0,0.57552]
[1743346197884,0.39079229,83162.0,83161.0,0.7138]
[1743346198359,0.39079229,83162.0,83161.0,0.7178]
[1743346198852,0.39079229,83162.0,83161.0,0.7148]
[1743346199324,0.39079229,83162.0,83161.0,0.7168]
[1743346200397,0.39079229,83162.0,83161.0,0.57552]
[1743346201202,0.39079229,83162.0,83161.0,0.574388]
[1743346201604,0.39079229,83162.0,83161.0,0.572388]
[1743346201887,0.40963217,83162.0,83161.0,0.571388]
[1743346202443,0.40963217,83162.0,83161.0,0.572388]
[1743346203110,0.40963217,83162.0,83161.0,0.571388]
[1743346206178,0.52357694,83162.0,83161.0,0.571388]
[1743346206387,0.40963217,83162.0,83161.0,0.571388]
[1743346206827,0.252533,83157.0,83156.0,0.0003366]
[1743346206973,0.380333,83157.0,83156.0,0.0003366]
[1743346207177,0.39066448,83157.0,83156.0,0.0003366]
[1743346208242,0.50434936,83157.0,83156.0,0.0003366]
[1743346208679,0.92064836,83157.0,83156.0,0.0003366]
[1743346208879,1.22064836,83157.0,83156.0,6e-07]
[1743346209081,1.24564836,83157.0,83156.0,6e-07]
[1743346209506,1.13196348,83157.0,83156.0,6e-07]
[1743346210486,1.15080719,83157.0,83156.0,6e-07]
[1743346210686,1.29063287,83157.0,83156.0,6e-07]
[1743346212277,0.01203,83123.0,83108.0,0.3]
[1743346212478,0.01203,83122.0,83121.0,0.57256]
[1743346212920,0.28175918,83122.0,83121.0,0.71384]
[1743346213423,0.28175918,83122.0,83121.0,0.57270128]
[1743346213834,0.28175918,83122.0,83121.0,0.71398128]
[1743346214888,0.28175918,83122.0,83121.0,0.72498128]
[1743346215107,0.32165879,83122.0,83121.0,0.57870128]
[1743346215305,0.32165879,83122.0,83121.0,0.71398128]
[1743346215465,0.28175918,83122.0,83121.0,0.71798128]
[1743346215661,0.28175918,83122.0,83121.0,0.72198128]
[1743346215862,0.28175918,83122.0,83121.0,0.71798128]
[1743346216081,0.28175918,83122.0,83121.0,0.71698128]
[1743346216507,0.28175918,83122.0,83121.0,0.72098128]
[1743346216707,0.39835103,83122.0,83121.0,0.72098128]
[1743346217252,0.28175918,83122.0,83121.0,0.72098128]
[1743346219053,0.02911918,83122.0,83121.0,0.72098128]
[1743346219191,0.01027321,83122.0,83121.0,0.84126611]
[1743346219391,0.240603,83125.0,83121.0,0.84126611]
[1743346219733,0.01203,83123.0,83122.0,0.12028483]
[1743346219932,0.252638,83123.0,83122.0,0.12028483]
[1743346220310,0.26285333,83123.0,83122.0,0.12028483]
[1743346222345,0.02224533,83123.0,83122.0,0.12028483]
[1743346222840,0.02224533,83123.0,83122.0,0.12328483]
[1743346223037,0.02224533,83123.0,83122.0,0.12628483]
[1743346224719,0.01021533,83123.0,83122.0,0.12628483]
[1743346224844,0.02224533,83123.0,83122.0,0.26760483]
[1743346225959,0.01021533,83123.0,83122.0,0.59984483]
[1743346226372,0.012028,83139.0,83122.0,0.59984483]
[1743346226373,0.252591,83139.0,83130.0,0.012029]
[1743346226579,0.012027,83146.0,83137.0,0.252592]
[1743346226790,0.240543,83145.0,83138.0,0.26160483]
[1743346226996,0.252579,83143.0,83138.0,0.26160483]
[1743346227295,0.00828692,83142.0,83138.0,0.26160483]
[1743346227941,0.012027,83140.0,83138.0,0.26160483]
[1743346228142,0.00828692,83142.0,83138.0,0.26160483]
[1743346228316,0.252579,83143.0,83138.0,0.26160483]
[1743346228514,0.001,83139.0,83138.0,0.26160483]
[1743346228697,0.002,83139.0,83138.0,0.26160483]
[1743346228898,0.00929225,83139.0,83138.0,0.26160483]
[1743346229247,0.00929225,83139.0,83138.0,0.26156483]
[1743346229248,0.02713657,83139.0,83138.0,0.26156483]
[1743346230434,0.02713657,83139.0,83138.0,0.26256483]
[1743346230636,0.02713657,83139.0,83138.0,0.27446061]
[1743346231669,0.03485785,83139.0,83138.0,0.27446061]
[1743346232670,0.04688585,83139.0,83138.0,0.27446061]
[1743346232868,0.03485785,83139.0,83138.0,0.27446061]
[1743346236043,0.04688585,83139.0,83138.0,0.27446061]
[1743346236456,0.02804153,83139.0,83138.0,0.27446061]
[1743346238449,0.01601353,83139.0,83138.0,0.27446061]
[1743346239640,0.03485787,83139.0,83138.0,0.27446061]
[1743346240536,0.04688587,83139.0,83138.0,0.27446061]
[1743346241027,0.04688587,83139.0,83138.0,0.27479761]
[1743346243197,0.03485787,83139.0,83138.0,0.27479761]
[1743346243962,0.28744587,83139.0,83138.0,0.27479761]
[1743346244162,0.04688587,83139.0,83138.0,0.27479761]
[1743346244784,0.28744587,83139.0,83138.0,0.27479761]
[1743346246013,0.28744587,83139.0,83138.0,0.001337]
[1743346246208,0.42351725,83139.0,83138.0,0.142617]
[1743346246414,0.42351725,83139.0,83138.0,0.001337]
[1743346246621,0.70467291,83139.0,83138.0,0.001337]
[1743346247166,0.72899188,83139.0,83138.0,0.001337]
[1743346247910,0.72899188,83139.0,83138.0,0.000337]
[1743346248512,1.15836589,83139.0,83138.0,0.000337]
[1743346248715,1.15736589,83139.0,83138.0,0.000337]
[1743346248928,0.25264,83122.0,83121.0,0.00047828]
[1743346249064,0.40905,83122.0,83121.0,0.00047828]
[1743346249272,0.42507058,83122.0,83121.0,2.8e-07]
[1743346249486,0.52451894,83122.0,83121.0,2.8e-07]
[1743346249882,0.94081794,83122.0,83121.0,2.8e-07]
[1743346250080,1.24081794,83122.0,83121.0,2.8e-07]
[1743346250732,1.25271803,83122.0,83121.0,2.8e-07]
[1743346250927,1.13290794,83122.0,83121.0,2.8e-07]
[1743346251131,1.13290794,83122.0,83121.0,0.00400028]
[1743346251380,1.15646863,83122.0,83121.0,0.00700028]
[1743346251573,1.15646863,83122.0,83121.0,0.00400028]
[1743346251988,1.15946863,83122.0,83121.0,0.00400028]
[1743346252192,1.27975346,83122.0,83121.0,2.8e-07]
[1743346252418,1.28275346,83122.0,83121.0,2.8e-07]
[1743346254965,1.28225346,83122.0,83121.0,2.8e-07]
[1743346256033,1.16196863,83122.0,83121.0,2.8e-07]
[1743346256639,1.14312027,83122.0,83121.0,2.8e-07]
[1743346259615,1.16197223,83122.0,83121.0,2.8e-07]
[1743346264665,1.28225706,83122.0,83121.0,2.8e-07]
[1743346265062,1.32696651,83122.0,83121.0,2.8e-07]
[1743346265276,1.44725134,83122.0,83121.0,2.8e-07]
[1743346265666,1.16214083,83122.0,83121.0,2.8e-07]
[1743346266247,1.14328887,83122.0,83121.0,2.8e-07]
[1743346266505,1.16828887,83122.0,83121.0,2.8e-07]
[1743346267119,1.14328887,83122.0,83121.0,2.8e-07]
[1743346269665,1.16214181,83122.0,83121.0,2.8e-07]
[1743346270144,1.30742664,83122.0,83121.0,2.8e-07]
[1743346273390,1.16214181,83122.0,83121.0,2.8e-07]
[1743346273792,0.73304181,83122.0,83121.0,2.8e-07]
[1743346274023,0.70948112,83122.0,83121.0,2.8e-07]
[1743346274800,0.29318212,83122.0,83121.0,2.8e-07]
[1743346275123,0.29018212,83122.0,83121.0,2.8e-07]
[1743346275484,0.29218212,83122.0,83121.0,2.8e-07]
[1743346276020,0.31663624,83122.0,83121.0,2.8e-07]
[1743346276219,0.28918212,83122.0,83121.0,2.8e-07]
[1743346276657,0.27232918,83122.0,83121.0,0.19828511]
[1743346277856,0.27032918,83122.0,83121.0,0.19828511]
[1743346278065,0.27132918,83122.0,83121.0,0.19828511]
[1743346278380,0.26932918,83122.0,83121.0,0.19828511]
[1743346278562,0.26932918,83122.0,83121.0,0.20725632]
[1743346278719,0.27032918,83122.0,83121.0,0.12925632]
[1743346279683,0.28917903,83122.0,83121.0,0.12925632]
[1743346281483,0.28917903,83122.0,83121.0,0.12028511]
[1743346281704,0.28917903,83122.0,83121.0,2.8e-07]
[1743346282881,0.28917903,83122.0,83121.0,0.14128028]
[1743346284129,0.28817903,83122.0,83121.0,0.14128028]
[1743346284802,0.28717903,83122.0,83121.0,0.14128028]
[1743346286531,0.26832918,83122.0,83121.0,0.14128028]
[1743346286732,0.3456875,83122.0,83121.0,0.14128028]
[1743346288825,0.3456875,83122.0,83121.0,0.14124028]
[1743346289544,0.36453727,83122.0,83121.0,0.14124028]
[1743346290149,0.36453727,83122.0,83121.0,2.8e-07]
[1743346290376,0.66453727,83122.0,83121.0,2.8e-07]
[1743346290599,1.08083627,83122.0,83121.0,2.8e-07]
[1743346291706,1.08183627,83122.0,83121.0,2.8e-07]
[1743346291958,1.08083627,83122.0,83121.0,2.8e-07]
[1743346292412,1.08383627,83122.0,83121.0,2.8e-07]
[1743346292619,1.08483627,83122.0,83121.0,2.8e-07]
[1743346293229,1.29906195,83122.0,83121.0,2.8e-07]
[1743346293975,1.30206195,83122.0,83121.0,2.8e-07]
[1743346296714,1.28321218,83122.0,83121.0,2.8e-07]
[1743346296927,1.07102818,83122.0,83121.0,2.8e-07]
[1743346297096,1.06602818,83122.0,83121.0,2.8e-07]
[1743346297662,1.20585386,83122.0,83121.0,2.8e-07]
[1743346299646,1.2247062,83122.0,83121.0,2.8e-07]
[1743346306672,1.20585386,83122.0,83121.0,2.8e-07]
[1743346307058,1.32613869,83122.0,83121.0,2.8e-07]
[1743346309674,1.33999116,83122.0,83121.0,2.8e-07]
[1743346309847,1.08488065,83122.0,83121.0,2.8e-07]
[1743346310050,1.00948065,83122.0,83121.0,2.8e-07]
[1743346310799,1.14930633,83122.0,83121.0,2.8e-07]
[1743346316702,1.13045386,83122.0,83121.0,2.8e-07]
[1743346319545,1.14930624,83122.0,83121.0,2.8e-07]
[1743346319830,1.26959107,83122.0,83121.0,2.8e-07]
[1743346326499,1.25073869,83122.0,83121.0,2.8e-07]
[1743346328616,0.99062818,83122.0,83121.0,2.8e-07]
[1743346329061,0.69062818,83122.0,83121.0,2.8e-07]
[1743346329275,0.69062818,83122.0,83121.0,0.12320028]
[1743346329510,0.70947885,83122.0,83121.0,0.12320028]
[1743346330000,0.70647885,83122.0,83121.0,0.12320028]
[1743346330243,0.70847885,83122.0,83121.0,0.12320028]
[1743346330703,0.29217985,83122.0,83121.0,0.12320028]
[1743346330938,0.28917985,83122.0,83121.0,0.12320028]
[1743346331917,0.29117985,83122.0,83121.0,0.12320028]
[1743346332608,0.03903985,83122.0,83121.0,0.12320028]
[1743346332820,0.03603985,83122.0,83121.0,0.12320028]
[1743346333446,0.03503985,83122.0,83121.0,0.12320028]
[1743346335220,0.04706985,83122.0,83121.0,0.12320028]
[1743346336426,0.04706985,83122.0,83121.0,0.26436028]
[1743346336714,0.02821918,83122.0,83121.0,0.26436028]
[1743346339512,0.04706892,83122.0,83121.0,0.26436028]
[1743346341128,0.04706892,83122.0,83121.0,0.12320028]
[1743346341383,0.13177678,83122.0,83121.0,2.8e-07]
[1743346341614,0.12876891,83122.0,83121.0,2.8e-07]
[1743346341859,0.04706892,83122.0,83121.0,2.8e-07]
[1743346342100,0.05007685,83122.0,83121.0,2.8e-07]
[1743346342580,0.04706892,83122.0,83121.0,2.8e-07]
[1743346344723,0.05007691,83122.0,83121.0,2.8e-07]
[1743346345006,0.12906971,83122.0,83121.0,2.8e-07]
[1743346345527,0.04706892,83122.0,83121.0,2.8e-07]
[1743346346011,0.02921918,83122.0,83121.0,2.8e-07]
[1743346346727,0.01718918,83122.0,83121.0,2.8e-07]
[1743346346932,0.01818918,83122.0,83121.0,2.8e-07]
[1743346347139,0.25879918,83122.0,83121.0,2.8e-07]
[1743346347334,0.01818918,83122.0,83121.0,2.8e-07]
[1743346347541,0.0011686,83122.0,83121.0,0.04800028]
[1743346347750,0.01470993,83122.0,83121.0,0.04800028]
[1743346347962,0.01570993,83122.0,83121.0,0.04800028]
[1743346348165,0.01370993,83122.0,83121.0,0.04800028]
[1743346348371,0.0001686,83122.0,83121.0,0.04800028]
[1743346348572,0.01370993,83122.0,83121.0,0.04800028]
[1743346349071,0.08004452,83122.0,83121.0,0.04800028]
[1743346349271,0.04458903,83122.0,83121.0,0.04900028]
[1743346349488,0.04458903,83122.0,83121.0,0.05000028]
[1743346352250,0.04458903,83122.0,83121.0,0.00200028]
[1743346352390,0.04759672,83122.0,83121.0,0.14308028]
[1743346352584,0.04458903,83122.0,83121.0,0.14308028]
[1743346353795,0.04458903,83122.0,83121.0,0.00200028]
[1743346354008,0.12904974,83122.0,83121.0,0.00200028]
[1743346354423,0.97024874,83122.0,83121.0,2.8e-07]
[1743346354626,0.012033,83100.0,83098.0,0.14108]
[1743346354774,0.012033,83100.0,83099.0,0.00041052]
[1743346354775,0.252706,83100.0,83099.0,0.00041052]
[1743346355045,0.26621134,83100.0,83099.0,0.00041052]
[1743346355403,0.2850647,83100.0,83099.0,0.00041052]
[1743346356188,0.2850647,83100.0,83099.0,0.00341052]
[1743346356412,0.2850647,83100.0,83099.0,0.00641052]
[1743346356618,0.26621134,83100.0,83099.0,0.00641052]
[1743346357099,0.74553817,83100.0,83099.0,0.00641052]
[1743346357306,0.75736618,83100.0,83099.0,0.00641052]
[1743346357514,1.17366518,83100.0,83099.0,0.00641052]
[1743346357731,1.17366518,83100.0,83099.0,0.00341052]
[1743346357949,1.17366518,83100.0,83099.0,0.00041052]
[1743346358121,1.17366518,83100.0,83099.0,0.00641052]
[1743346358355,1.16183717,83100.0,83099.0,0.00641052]
[1743346358540,1.16183717,83100.0,83099.0,0.00041052]
[1743346358740,1.16283717,83100.0,83099.0,0.00041052]
[1743346358958,1.16383717,83100.0,83099.0,0.00041052]
[1743346359873,1.19493127,83100.0,83099.0,0.00041052]
[1743346360686,1.18269378,83100.0,83099.0,0.00041052]
[1743346365642,1.16383717,83100.0,83099.0,0.00041052]
[1743346368094,1.06261034,83100.0,83099.0,0.00041052]
[1743346368516,0.98451034,83100.0,83099.0,0.00041052]
[1743346368930,1.00336703,83100.0,83099.0,0.00041052]
[1743346375544,1.22319271,83100.0,83099.0,0.00041052]
[1743346376015,1.26829271,83100.0,83099.0,0.00041052]
[1743346376208,1.38857754,83100.0,83099.0,0.00041052]
[1743346376859,1.38757754,83100.0,83099.0,0.00041052]
[1743346377061,1.36803669,83100.0,83099.0,0.00041052]
[1743346377235,1.24675186,83100.0,83099.0,0.00041052]
[1743346377442,1.24875186,83100.0,83099.0,0.00041052]
[1743346377938,1.12846703,83100.0,83099.0,0.00041052]
[1743346378077,1.13146703,83100.0,83099.0,0.00041052]
[1743346378281,1.12946703,83100.0,83099.0,0.00041052]
[1743346378485,1.24975186,83100.0,83099.0,0.00041052]
[1743346379141,1.25275186,83100.0,83099.0,0.00041052]
[1743346379645,1.00736703,83100.0,83099.0,0.00041052]
[1743346379781,0.98851034,83100.0,83099.0,0.00041052]
[1743346382782,1.00736671,83100.0,83099.0,0.00041052]
[1743346385231,1.21839239,83100.0,83099.0,5.2e-07]
[1743346385455,1.29489239,83100.0,83099.0,5.2e-07]
[1743346385669,0.252789,83073.0,83072.0,0.573177]
[1743346385848,0.252789,83073.0,83072.0,0.57331832]
[1743346386059,0.26607882,83073.0,83072.0,0.57331832]
[1743346387536,0.26607882,83073.0,83072.0,0.57431832]
[1743346387905,0.38636365,83073.0,83072.0,0.00147832]
[1743346388115,0.38636365,83073.0,83072.0,0.00247832]
[1743346389178,0.80266213,83073.0,83072.0,0.00247832]
[1743346389380,0.82152284,83073.0,83072.0,0.00247832]
[1743346389804,0.80266213,83073.0,83072.0,0.00247832]
[1743346391748,0.6823773,83073.0,83072.0,0.00247832]
[1743346393816,0.70123796,83073.0,83072.0,0.00247832]
[1743346395189,0.28493948,83073.0,83072.0,0.00247832]
[1743346396472,0.26607882,83073.0,83072.0,0.00247832]
[1743346403089,0.01328982,83073.0,83072.0,0.00247832]
[1743346403388,0.252789,83073.0,83072.0,0.00247832]
[1743346403619,0.28487901,83073.0,83072.0,0.00247832]
[1743346406464,0.26601879,83073.0,83072.0,0.00247832]
[1743346407630,0.34438007,83073.0,83072.0,0.00247832]
[1743346408264,0.09159107,83073.0,83072.0,0.00247832]